bitfinex/quotes_BTCUSD_20241130
["timestamp","ask_amount","ask_price","bid_price","bid_amount"]
[1732997369603,0.66653546,97110.0,97109.0,8e-08]
[1732997369818,0.66651616,97110.0,97109.0,8e-08]
[1732997370250,0.57399295,97110.0,97109.0,8e-08]
[1732997370452,0.66651451,97110.0,97109.0,8e-08]
[1732997370678,0.57399295,97110.0,97109.0,8e-08]
[1732997376479,1.26049295,97110.0,97109.0,8e-08]
[1732997376691,1.39927659,97110.0,97109.0,8e-08]
[1732997376909,1.26049295,97110.0,97109.0,8e-08]
[1732997377121,1.39928464,97110.0,97109.0,8e-08]
[1732997380732,1.39931807,97110.0,97109.0,8e-08]
[1732997381378,1.36332441,97110.0,97109.0,8e-08]
[1732997381594,1.26049295,97110.0,97109.0,8e-08]
[1732997382041,1.26135715,97110.0,97109.0,8e-08]
[1732997388084,1.13055715,97110.0,97109.0,8e-08]
[1732997400780,0.44405715,97110.0,97109.0,8e-08]
[1732997400991,0.48915715,97110.0,97109.0,8e-08]
[1732997401222,0.56775715,97110.0,97109.0,8e-08]
[1732997401422,0.65749844,97110.0,97109.0,8e-08]
[1732997404641,0.56775715,97110.0,97109.0,8e-08]
[1732997410808,0.56775715,97110.0,97103.0,8.4e-07]
[1732997410809,0.631182,97104.0,97103.0,8.4e-07]
[1732997411016,0.84702509,97104.0,97103.0,8.4e-07]
[1732997411433,0.85119895,97104.0,97103.0,8.4e-07]
[1732997411981,0.86019895,97104.0,97103.0,8.4e-07]
[1732997413269,0.86919895,97104.0,97103.0,8.4e-07]
[1732997417698,0.285986,97100.0,97099.0,7.1e-07]
[1732997417928,0.46622909,97100.0,97099.0,7.1e-07]
[1732997418361,0.366789,97097.0,97096.0,9.1e-07]
[1732997418591,0.50183209,97097.0,97096.0,9.1e-07]
[1732997419292,0.60466355,97097.0,97096.0,9.1e-07]
[1732997419521,0.60883741,97097.0,97096.0,9.1e-07]
[1732997420153,0.50600595,97097.0,97096.0,9.1e-07]
[1732997420430,0.74669388,97097.0,97096.0,9.1e-07]
[1732997420636,0.75569388,97097.0,97096.0,9.1e-07]
[1732997420847,0.74669388,97097.0,97096.0,9.1e-07]
[1732997421283,0.75569388,97097.0,97096.0,9.1e-07]
[1732997422009,0.67489388,97097.0,97096.0,9.1e-07]
[1732997422885,0.73196662,97097.0,97096.0,9.1e-07]
[1732997423112,0.7319263,97097.0,97096.0,9.1e-07]
[1732997423323,0.50027869,97097.0,97096.0,9.1e-07]
[1732997428588,0.44320595,97097.0,97096.0,9.1e-07]
[1732997430183,0.62846017,97097.0,97096.0,9.1e-07]
[1732997432529,0.44320595,97097.0,97096.0,9.1e-07]
[1732997434804,0.62844895,97097.0,97096.0,9.1e-07]
[1732997437989,0.44320595,97097.0,97096.0,9.1e-07]
[1732997438204,0.54603741,97097.0,97096.0,9.1e-07]
[1732997438450,0.77758734,97097.0,97096.0,9.1e-07]
[1732997445778,0.54603741,97097.0,97096.0,9.1e-07]
[1732997451315,0.58727941,97097.0,97096.0,9.1e-07]
[1732997454301,0.48531205,97097.0,97096.0,9.1e-07]
[1732997455209,0.48531205,97097.0,97096.0,0.12350091]
[1732997455210,0.67577053,97097.0,97096.0,0.12350091]
[1732997455670,0.44407005,97097.0,97096.0,0.12350091]
[1732997456183,0.62944512,97097.0,97096.0,0.12350091]
[1732997456414,0.44407005,97097.0,97096.0,0.12350091]
[1732997457406,0.55010363,97097.0,97096.0,0.12350091]
[1732997457632,0.41107005,97097.0,97096.0,0.12350091]
[1732997458814,0.37887217,97097.0,97096.0,0.12350091]
[1732997459583,0.36987217,97097.0,97096.0,0.12350091]
[1732997459835,0.37887217,97097.0,97096.0,0.12350091]
[1732997460094,0.36987217,97097.0,97096.0,0.12350091]
[1732997460313,0.37887217,97097.0,97096.0,0.12350091]
[1732997460729,0.36987217,97097.0,97096.0,0.12350091]
[1732997461063,0.36087217,97097.0,97096.0,0.12350091]
[1732997461275,0.36987217,97097.0,97096.0,0.12350091]
[1732997461715,0.36087217,97097.0,97096.0,0.12350091]
[1732997462133,0.36987217,97097.0,97096.0,0.12350091]
[1732997462357,0.26688317,97097.0,97096.0,0.12350091]
[1732997462619,0.27588317,97097.0,97096.0,0.12350091]
[1732997462832,0.36987217,97097.0,97096.0,0.12350091]
[1732997463053,0.36987217,97097.0,97096.0,0.12794431]
[1732997463271,0.37887217,97097.0,97096.0,0.12350091]
[1732997463477,0.26688317,97097.0,97096.0,0.12350091]
[1732997463972,0.27588317,97097.0,97096.0,0.12794431]
[1732997464192,0.36987217,97097.0,97096.0,0.12794431]
[1732997464606,0.37887217,97097.0,97096.0,0.12794431]
[1732997465264,0.22887217,97097.0,97096.0,0.12794431]
[1732997473113,0.22887217,97097.0,97096.0,0.12350091]
[1732997473319,0.22887217,97097.0,97096.0,0.12793455]
[1732997473548,0.22887217,97097.0,97096.0,0.12350091]
[1732997473999,0.22887217,97097.0,97096.0,0.12793455]
[1732997474852,0.12588317,97097.0,97096.0,0.12793455]
[1732997475078,0.12588317,97097.0,97096.0,0.23092455]
[1732997487870,0.12588317,97097.0,97096.0,0.12793455]
[1732997492089,0.12588317,97097.0,97096.0,0.23092455]
[1732997493309,0.12588317,97097.0,97096.0,0.12793455]
[1732997494942,0.12588317,97097.0,97096.0,0.05043455]
[1732997495888,0.22887217,97097.0,97096.0,0.05043455]
[1732997497063,0.12588317,97097.0,97096.0,0.05043455]
[1732997500221,0.22887217,97097.0,97096.0,0.05043455]
[1732997500436,0.12588317,97097.0,97096.0,0.00443455]
[1732997502647,0.12588317,97097.0,97096.0,0.10742455]
[1732997505566,0.12588317,97097.0,97096.0,0.00443455]
[1732997506965,0.12588317,97097.0,97096.0,0.10742455]
[1732997508246,0.12588317,97097.0,97096.0,0.00443455]
[1732997508598,0.12588317,97097.0,97096.0,0.10742455]
[1732997510151,0.12588317,97097.0,97096.0,0.2924093]
[1732997510358,0.12588317,97097.0,97096.0,0.10742455]
[1732997513953,0.12588317,97097.0,97096.0,0.29244503]
[1732997515297,0.12588317,97097.0,97096.0,0.18945503]
[1732997515529,0.12588317,97097.0,97096.0,0.29244503]
[1732997515993,0.12588317,97097.0,97096.0,0.10742455]
[1732997517720,0.12588317,97097.0,97096.0,0.29249658]
[1732997518132,0.12588317,97097.0,97096.0,0.10742455]
[1732997518480,0.12588317,97097.0,97096.0,0.29248849]
[1732997519121,0.12588317,97097.0,97096.0,0.10742455]
[1732997519536,0.12588317,97097.0,97096.0,0.29251504]
[1732997519745,0.12588317,97097.0,97096.0,0.10742455]
[1732997520123,0.12588317,97097.0,97096.0,0.29251814]
[1732997521548,0.12588317,97097.0,97096.0,0.10742455]
[1732997521888,0.12588317,97097.0,97096.0,0.29253492]
[1732997523025,0.12588317,97097.0,97096.0,0.10742455]
[1732997523413,0.12588317,97097.0,97096.0,0.33879407]
[1732997523881,0.12588317,97097.0,97096.0,0.10742455]
[1732997524490,0.12588317,97097.0,97096.0,0.33880318]
[1732997524944,0.12588317,97097.0,97096.0,0.23581318]
[1732997525177,0.12588317,97097.0,97096.0,0.10742455]
[1732997525620,0.12588317,97097.0,97096.0,0.23581318]
[1732997525804,0.12588317,97097.0,97096.0,0.33880318]
[1732997526042,0.12588317,97097.0,97096.0,0.10742455]
[1732997528606,0.12588317,97097.0,97096.0,0.33882303]
[1732997531331,0.12588317,97097.0,97096.0,0.10742455]
[1732997532351,0.11688317,97097.0,97096.0,0.10742455]
[1732997532583,0.10788317,97097.0,97096.0,0.15512455]
[1732997532804,0.11688317,97097.0,97096.0,0.15512455]
[1732997533006,0.12588317,97097.0,97096.0,0.15512455]
[1732997533210,0.11688317,97097.0,97096.0,0.15512455]
[1732997533640,0.12588317,97097.0,97096.0,0.15512455]
[1732997533890,0.10788317,97097.0,97096.0,0.15512455]
[1732997534099,0.11688317,97097.0,97096.0,0.15512455]
[1732997534315,0.12388317,97097.0,97096.0,0.15512455]
[1732997534759,0.11688317,97097.0,97096.0,0.15512455]
[1732997534980,0.12088317,97097.0,97096.0,0.23274728]
[1732997535197,0.01803796,97097.0,97096.0,0.23092455]
[1732997539509,0.01803796,97097.0,97096.0,0.5193961]
[1732997539717,0.01803796,97097.0,97096.0,0.24197992]
[1732997540278,0.01803796,97097.0,97096.0,0.51939477]
[1732997542227,0.01803796,97097.0,97096.0,0.51935298]
[1732997543571,0.01803796,97097.0,97096.0,0.24197992]
[1732997554901,0.01803796,97097.0,97096.0,0.51917266]
[1732997557753,0.01803796,97097.0,97096.0,0.24197992]
[1732997562790,0.01803796,97097.0,97096.0,0.51910466]
[1732997563234,0.01803796,97097.0,97096.0,0.25197992]
[1732997563502,0.01803796,97097.0,97096.0,0.26197992]
[1732997564136,0.01403796,97097.0,97096.0,0.26197992]
[1732997564349,0.01703796,97097.0,97096.0,0.26197992]
[1732997564566,0.00803796,97097.0,97096.0,0.26197992]
[1732997564775,0.01403796,97097.0,97096.0,0.26197992]
[1732997568971,0.01403796,97097.0,97096.0,0.67086731]
[1732997569199,0.01403796,97097.0,97096.0,0.26197992]
[1732997570750,0.01403796,97097.0,97096.0,0.18617992]
[1732997571032,0.01403796,97097.0,97096.0,0.18800237]
[1732997572611,0.01403796,97097.0,97096.0,0.30330237]
[1732997572816,0.01403796,97097.0,97096.0,0.30147992]
[1732997577560,0.01403796,97097.0,97096.0,0.35997992]
[1732997577978,0.01403796,97097.0,97096.0,0.76894668]
[1732997580436,0.01403796,97097.0,97096.0,0.74594668]
[1732997582366,0.01403796,97097.0,97096.0,0.33697992]
[1732997583289,0.01403796,97097.0,97096.0,0.74594668]
[1732997584816,0.01403796,97097.0,97096.0,0.33697992]
[1732997591181,0.00803796,97097.0,97096.0,0.33697992]
[1732997591381,0.01103796,97097.0,97096.0,0.33697992]
[1732997591578,0.01403796,97097.0,97096.0,0.33697992]
[1732997592170,0.01103796,97097.0,97096.0,0.33697992]
[1732997592817,0.01203796,97097.0,97096.0,0.33697992]
[1732997593283,0.01403796,97097.0,97096.0,0.41807992]
[1732997594004,0.00503796,97097.0,97096.0,0.41807992]
[1732997594464,0.00603796,97097.0,97096.0,0.41807992]
[1732997596944,9.6e-07,97097.0,97096.0,0.52092513]
[1732997597163,2.6e-07,97100.0,97099.0,0.272987]
[1732997597374,2.6e-07,97100.0,97099.0,0.5363056]
[1732997597850,2.6e-07,97100.0,97099.0,0.5403291]
[1732997598335,0.00100026,97100.0,97099.0,0.5403291]
[1732997598546,0.00096026,97100.0,97099.0,0.5403291]
[1732997600072,0.00296026,97100.0,97099.0,0.5403291]
[1732997602978,0.00296026,97100.0,97099.0,0.5420573]
[1732997613682,2.6e-07,97100.0,97099.0,0.5420573]
[1732997614493,0.0008642,97110.0,97109.0,0.122977]
[1732997614708,0.0008642,97110.0,97109.0,0.6835331]
[1732997614917,0.0008642,97110.0,97109.0,0.27699391]
[1732997615347,0.0008642,97110.0,97109.0,0.68571877]
[1732997615993,0.0108642,97110.0,97109.0,0.68671877]
[1732997619458,0.0108642,97110.0,97109.0,0.68668605]
[1732997620523,0.0108642,97110.0,97109.0,0.27799391]
[1732997622341,0.0008642,97110.0,97109.0,0.27699391]
[1732997622516,0.0008642,97110.0,97109.0,0.28099391]
[1732997622693,0.0008642,97110.0,97109.0,0.29514231]
[1732997624636,0.17913372,97120.0,97112.0,0.272973]
[1732997625054,0.17913372,97120.0,97112.0,0.27698919]
[1732997625648,0.17913372,97120.0,97112.0,0.68554002]
[1732997626068,0.17913372,97120.0,97112.0,0.27698919]
[1732997626273,0.17913372,97120.0,97112.0,0.28098919]
[1732997626902,0.17913372,97120.0,97112.0,0.68954002]
[1732997627337,0.17913372,97120.0,97112.0,0.28098919]
[1732997627951,0.17913372,97120.0,97112.0,0.68952396]
[1732997628171,0.17913372,97120.0,97112.0,0.28098919]
[1732997631488,0.17913372,97120.0,97112.0,0.31244235]
[1732997633675,0.17913372,97120.0,97112.0,0.36224235]
[1732997645276,4e-07,97114.0,97113.0,0.122972]
[1732997645509,4e-07,97114.0,97113.0,0.40909247]
[1732997645729,4e-07,97114.0,97113.0,0.41128495]
[1732997646623,4e-07,97114.0,97113.0,0.41328495]
[1732997647994,4e-07,97114.0,97113.0,0.41528495]
[1732997659398,4e-07,97114.0,97113.0,0.31243974]
[1732997663460,4e-07,97114.0,97113.0,0.31416774]
[1732997668609,4e-07,97114.0,97113.0,0.36266774]
[1732997669440,4e-07,97114.0,97113.0,0.46551295]
[1732997671524,0.17913372,97120.0,97116.0,0.122969]
[1732997671706,0.17913372,97120.0,97116.0,0.30624432]
[1732997671902,0.17913372,97120.0,97116.0,0.30843621]
[1732997673677,0.17913372,97120.0,97116.0,0.30943621]
[1732997677340,0.17913372,97120.0,97116.0,0.29943621]
[1732997696487,0.17913372,97120.0,97116.0,0.26798305]
[1732997697219,0.17913372,97120.0,97116.0,0.29945326]
[1732997700562,0.17913372,97120.0,97116.0,0.26798305]
[1732997700791,0.17913372,97120.0,97116.0,0.29945414]
[1732997701253,0.17913372,97120.0,97116.0,0.26798305]
[1732997701699,0.17913372,97120.0,97116.0,0.29945188]
[1732997702613,0.17913372,97120.0,97116.0,0.26798305]
[1732997703261,0.0458642,97117.0,97116.0,0.26798305]
[1732997704360,0.0008642,97117.0,97116.0,0.26798305]
[1732997704966,0.17913372,97120.0,97118.0,0.112967]
[1732997705220,0.17913372,97120.0,97118.0,0.262967]
[1732997705481,0.17913372,97120.0,97118.0,0.2677876]
[1732997706348,0.0018642,97119.0,97118.0,0.2677876]
[1732997725082,0.0496642,97119.0,97118.0,0.2577876]
[1732997725229,0.23380941,97119.0,97118.0,0.1077876]
[1732997725450,0.23380941,97119.0,97118.0,0.2820105]
[1732997725656,0.33677541,97119.0,97118.0,0.51305825]
[1732997725865,0.23280941,97119.0,97118.0,0.2820105]
[1732997726077,0.23280941,97119.0,97118.0,0.0048206]
[1732997726293,0.24180941,97119.0,97118.0,0.23676033]
[1732997726512,0.24680941,97119.0,97118.0,0.23676033]
[1732997727401,0.23780941,97119.0,97118.0,0.23576033]
[1732997727679,0.24680941,97119.0,97118.0,0.23676033]
[1732997728116,0.24680941,97119.0,97118.0,0.0058206]
[1732997728341,0.24680941,97119.0,97118.0,0.19048101]
[1732997728550,0.24680941,97119.0,97118.0,0.0058206]
[1732997728969,0.24680941,97119.0,97118.0,0.29344801]
[1732997729386,0.24680941,97119.0,97118.0,0.1087876]
[1732997733490,0.16550941,97119.0,97118.0,0.1087876]
[1732997733696,0.11770941,97119.0,97118.0,0.1087876]
[1732997747556,0.0148642,97119.0,97118.0,0.1087876]
[1732997754890,0.0148642,97119.0,97118.0,0.3394268]
[1732997755119,0.0148642,97119.0,97118.0,0.1087876]
[1732997755565,0.0148642,97119.0,97118.0,0.33943392]
[1732997755788,0.0639642,97119.0,97118.0,0.1087876]
[1732997756010,0.0639642,97119.0,97118.0,0.33943577]
[1732997756439,0.0639642,97119.0,97118.0,0.1087876]
[1732997756664,0.0639642,97119.0,97118.0,0.33944548]
[1732997756894,0.0639642,97119.0,97118.0,0.1087876]
[1732997763080,0.0703293,97119.0,97118.0,0.1087876]
[1732997763689,0.0212293,97119.0,97118.0,0.1087876]
[1732997764306,0.01998904,97119.0,97118.0,0.1087876]
[1732997765589,0.01998904,97119.0,97118.0,0.0058206]
[1732997765818,0.01998904,97119.0,97118.0,0.1087876]
[1732997768857,0.01998904,97119.0,97118.0,0.0058206]
[1732997769064,0.01998904,97119.0,97118.0,0.1087876]
[1732997770823,0.02085324,97119.0,97118.0,0.1087876]
[1732997775822,0.02008067,97119.0,97118.0,0.1087876]
[1732997776152,0.02008067,97119.0,97118.0,0.38594233]
[1732997778315,0.02008067,97119.0,97118.0,0.1087876]
[1732997779683,0.02008067,97119.0,97118.0,0.38605405]
[1732997779913,0.02008067,97119.0,97118.0,0.28308705]
[1732997780070,0.22589188,97119.0,97118.0,0.28308705]
[1732997780330,0.22589188,97119.0,97118.0,0.0058206]
[1732997780530,0.12292588,97119.0,97118.0,0.0058206]
[1732997782981,0.12292588,97119.0,97118.0,0.007549]
[1732997787453,0.22589188,97119.0,97118.0,0.007549]
[1732997788490,0.22589188,97119.0,97118.0,0.0027284]
[1732997791384,0.27139188,97119.0,97118.0,0.0027284]
[1732997791629,0.35209188,97119.0,97118.0,0.0027284]
[1732997793016,0.3682073,97119.0,97118.0,0.0027284]
[1732997795595,0.37785003,97119.0,97118.0,0.0027284]
[1732997796804,0.36885003,97119.0,97118.0,0.0017284]
[1732997797026,0.37785003,97119.0,97118.0,0.0027284]
[1732997797253,0.37399866,97119.0,97118.0,0.0027284]
[1732997797485,0.38299866,97119.0,97118.0,0.0027284]
[1732997798562,0.37335593,97119.0,97118.0,0.0027284]
[1732997800772,0.54335593,97119.0,97118.0,0.0027284]
[1732997806828,0.55299054,97119.0,97118.0,0.0027284]
[1732997808289,0.38299054,97119.0,97118.0,0.0027284]
[1732997813522,0.55299054,97119.0,97118.0,0.0027284]
[1732997815048,0.55299533,97119.0,97118.0,0.0027284]
[1732997816241,0.38299533,97119.0,97118.0,0.0027284]
[1732997816471,0.55299533,97119.0,97118.0,0.0027284]
[1732997816677,0.38299533,97119.0,97118.0,0.0027284]
[1732997818915,0.37335593,97119.0,97118.0,0.01042579]
[1732997819371,0.64150052,97119.0,97118.0,0.01042579]
[1732997819599,0.53300052,97119.0,97118.0,0.0027284]
[1732997820305,0.565014,97119.0,97118.0,0.01042689]
[1732997820802,0.54300052,97119.0,97118.0,0.0027284]
[1732997821015,0.57513692,97119.0,97118.0,0.0027284]
[1732997821232,0.54300052,97119.0,97118.0,0.0027284]
[1732997821453,0.57514132,97119.0,97118.0,0.0027284]
[1732997821918,0.59814132,97119.0,97118.0,0.0027284]
[1732997822403,0.58914132,97119.0,97118.0,0.0017284]
[1732997822636,0.59814132,97119.0,97118.0,0.0017284]
[1732997822874,0.58914132,97119.0,97118.0,0.0017284]
[1732997823362,0.58950784,97119.0,97118.0,0.0017284]
[1732997824047,0.75950784,97119.0,97118.0,0.0017284]
[1732997824293,0.76850784,97119.0,97118.0,0.0017284]
[1732997825511,0.75550784,97119.0,97118.0,0.0017284]
[1732997825748,0.75514132,97119.0,97118.0,0.0017284]
[1732997825990,0.58514132,97119.0,97118.0,0.0017284]
[1732997826459,0.67757286,97119.0,97118.0,0.0017284]
[1732997826698,0.78040432,97119.0,97118.0,0.0017284]
[1732997827517,0.68797278,97119.0,97118.0,0.0017284]
[1732997827995,0.67832819,97119.0,97118.0,0.0017284]
[1732997828235,0.78039462,97119.0,97118.0,0.0017284]
[1732997828493,0.68796308,97119.0,97118.0,0.0017284]
[1732997831013,1.37446308,97119.0,97118.0,0.0017284]
[1732997833893,1.37790804,97119.0,97118.0,0.0017284]
[1732997834368,1.27507658,97119.0,97118.0,0.0017284]
[1732997838207,1.27163162,97119.0,97118.0,0.0017284]
[1732997839223,0.75893162,97119.0,97118.0,0.0017284]
[1732997839904,0.72679082,97119.0,97118.0,0.0017284]
[1732997842032,0.71715593,97119.0,97118.0,0.0017284]
[1732997842280,0.72678636,97119.0,97118.0,0.0017284]
[1732997842513,0.71715593,97119.0,97118.0,0.0017284]
[1732997842787,0.72678799,97119.0,97118.0,0.0017284]
[1732997844208,1.41328799,97119.0,97118.0,0.0017284]
[1732997845205,1.46118799,97119.0,97118.0,0.0017284]
[1732997845432,1.56401945,97119.0,97118.0,0.0017284]
[1732997845668,1.63388739,97119.0,97118.0,0.0017284]
[1732997846577,1.66599806,97119.0,97118.0,0.0017284]
[1732997846794,1.67563892,97119.0,97118.0,0.0017284]
[1732997848374,0.98913892,97119.0,97118.0,0.0017284]
[1732997850194,0.98914575,97119.0,97118.0,0.0017284]
[1732997850388,1.01214575,97119.0,97118.0,0.0017284]
[1732997850873,1.10453978,97119.0,97118.0,0.0017284]
[1732997851308,1.10453978,97119.0,97117.0,4e-07]
[1732997851309,0.295967,97118.0,97117.0,4e-07]
[1732997851578,0.42337,97115.0,97114.0,4e-07]
[1732997851794,0.57433867,97115.0,97114.0,4e-07]
[1732997852724,0.58333867,97115.0,97114.0,4e-07]
[1732997854504,0.59233867,97115.0,97114.0,4e-07]
[1732997854759,0.69517013,97115.0,97114.0,4e-07]
[1732997854968,0.68617013,97115.0,97114.0,4e-07]
[1732997855187,0.69517013,97115.0,97114.0,4e-07]
[1732997855619,0.6955811,97115.0,97114.0,4e-07]
[1732997856277,0.6865811,97115.0,97114.0,4e-07]
[1732997856478,0.6955811,97115.0,97114.0,4e-07]
[1732997858384,0.83427877,97115.0,97114.0,4e-07]
[1732997858602,0.85485851,97115.0,97114.0,4e-07]
[1732997859244,0.71616084,97115.0,97114.0,4e-07]
[1732997860142,1.40266084,97115.0,97114.0,4e-07]
[1732997860827,1.40196814,97115.0,97114.0,4e-07]
[1732997861532,1.58689836,97115.0,97114.0,4e-07]
[1732997861947,1.58759106,97115.0,97114.0,4e-07]
[1732997862218,1.58845526,97115.0,97114.0,4e-07]
[1732997863331,1.40352504,97115.0,97114.0,4e-07]
[1732997863558,1.38322703,97115.0,97114.0,4e-07]
[1732997863767,1.38342016,97115.0,97114.0,4e-07]
[1732997864474,1.38341804,97115.0,97114.0,4e-07]
[1732997864695,1.28058658,97115.0,97114.0,4e-07]
[1732997864905,0.77927828,97115.0,97114.0,4e-07]
[1732997865368,0.77927809,97115.0,97114.0,4e-07]
[1732997867072,0.59408658,97115.0,97114.0,4e-07]
[1732997867350,0.44280075,97115.0,97114.0,4e-07]
[1732997870031,1.12930075,97115.0,97114.0,4e-07]
[1732997870855,1.1592518,97115.0,97114.0,4e-07]
[1732997872391,1.12930075,97115.0,97114.0,4e-07]
[1732997872608,0.44280075,97115.0,97114.0,4e-07]
[1732997873548,0.43280075,97115.0,97114.0,4e-07]
[1732997873762,0.44280075,97115.0,97114.0,4e-07]
[1732997878317,1.12930075,97115.0,97114.0,4e-07]
[1732997880534,1.14032447,97115.0,97114.0,4e-07]
[1732997883044,0.45382447,97115.0,97114.0,4e-07]
[1732997885452,0.4747256,97115.0,97114.0,4e-07]
[1732997888813,0.45382447,97115.0,97114.0,4e-07]
[1732997894270,0.44280075,97115.0,97114.0,4e-07]
[1732997896003,0.46298277,97115.0,97114.0,4e-07]
[1732997898719,0.44281521,97115.0,97114.0,4e-07]
[1732997899140,0.43281521,97115.0,97114.0,4e-07]
[1732997899347,0.44281521,97115.0,97114.0,4e-07]
[1732997904812,0.54564667,97115.0,97114.0,4e-07]
[1732997906006,0.46380497,97115.0,97114.0,4e-07]
[1732997908256,0.252985,97101.0,97100.0,0.10261743]
[1732997908483,0.36549024,97101.0,97100.0,0.10261743]
[1732997908938,0.38161142,97101.0,97100.0,0.10261743]
[1732997909446,0.38797652,97101.0,97100.0,0.10261743]
[1732997909661,0.39697652,97101.0,97100.0,0.10261743]
[1732997910293,0.40597652,97101.0,97100.0,0.10261743]
[1732997910760,0.39631649,97101.0,97100.0,0.10261743]
[1732997910969,0.40597728,97101.0,97100.0,0.10261743]
[1732997914100,0.40597735,97101.0,97100.0,0.10261743]
[1732997915036,0.15299235,97101.0,97100.0,0.10261743]
[1732997915298,0.14333149,97101.0,97100.0,0.20560343]
[1732997915744,0.14333149,97101.0,97100.0,0.20983525]
[1732997916669,0.12533149,97101.0,97100.0,0.20983525]
[1732997917055,0.13433149,97101.0,97100.0,0.20983525]
[1732997917257,0.14333149,97101.0,97100.0,0.20983525]
[1732997920433,0.14333149,97101.0,97100.0,0.10684925]
[1732997921411,0.14333149,97101.0,97100.0,0.20983525]
[1732997921953,0.14333149,97101.0,97100.0,0.10857765]
[1732997932078,0.24631649,97101.0,97100.0,0.10857765]
[1732997933212,0.14333149,97101.0,97100.0,0.10857765]
[1732997934066,0.24631649,97101.0,97100.0,0.10857765]
[1732997938451,0.24631649,97101.0,97100.0,0.05176022]
[1732997950724,0.14333149,97101.0,97100.0,0.05176022]
[1732997950936,0.14333149,97101.0,97100.0,0.15474622]
[1732997951181,0.14333149,97101.0,97100.0,0.23744622]
[1732997951664,0.12721031,97101.0,97100.0,0.23744622]
[1732997951895,0.0243651,97101.0,97100.0,0.23744622]
[1732997952337,0.0153651,97101.0,97100.0,0.23744622]
[1732997952800,0.0213651,97101.0,97100.0,0.23744622]
[1732997953040,0.0123651,97101.0,97100.0,0.23744622]
[1732997953285,0.0113651,97101.0,97100.0,0.23744622]
[1732997953509,0.0143651,97101.0,97100.0,0.23744622]
[1732997953740,0.0093651,97101.0,97100.0,0.23744622]
[1732997953969,0.0143651,97101.0,97100.0,0.23744622]
[1732997955855,0.0143651,97101.0,97100.0,0.24844243]
[1732997957466,0.11721031,97101.0,97100.0,0.23744622]
[1732997959114,0.11721031,97101.0,97100.0,0.23520957]
[1732997968816,0.11721031,97101.0,97100.0,0.24290686]
[1732997970164,0.11721031,97101.0,97100.0,0.23520957]
[1732997970396,0.11721031,97101.0,97100.0,0.2429068]
[1732997979674,0.11807461,97101.0,97100.0,0.2429068]
[1732997980575,0.11641062,97101.0,97100.0,0.2429068]
[1732997983049,0.11641062,97101.0,97100.0,0.1602068]
[1732997986282,0.11641062,97101.0,97100.0,0.11664345]
[1732997986608,0.11641062,97101.0,97100.0,0.11665749]
[1732997990145,0.11641062,97101.0,97100.0,0.10894622]
[1732998000532,0.19941062,97101.0,97100.0,0.00596022]
[1732998000766,0.19941062,97101.0,97100.0,0.38660671]
[1732998000986,0.19941062,97101.0,97100.0,0.10894622]
[1732998001247,0.11641062,97101.0,97100.0,0.10894622]
[1732998004619,0.11641062,97101.0,97100.0,0.23724622]
[1732998006669,0.11641062,97101.0,97100.0,0.15784622]
[1732998007522,0.11641062,97101.0,97100.0,0.10894622]
[1732998017328,0.21939562,97101.0,97100.0,0.00596022]
[1732998017537,0.34949562,97101.0,97100.0,0.00596022]
[1732998018421,0.34949562,97101.0,97100.0,0.0017284]
[1732998018651,0.34949562,97101.0,97100.0,0.00540875]
[1732998018652,0.34649562,97101.0,97100.0,0.00540875]
[1732998018887,0.34749562,97101.0,97100.0,0.0017284]
[1732998019102,0.35649562,97101.0,97100.0,0.00540875]
[1732998019312,0.35049562,97101.0,97100.0,0.0017284]
[1732998019532,0.35049562,97101.0,97100.0,0.00540875]
[1732998019747,0.35649562,97101.0,97100.0,0.0017284]
[1732998019966,0.35649562,97101.0,97100.0,0.00540875]
[1732998031533,0.35649562,97101.0,97100.0,0.0017284]
[1732998046348,0.36614497,97101.0,97100.0,0.0017284]
[1732998048196,0.36614948,97101.0,97100.0,0.0017284]
[1732998051548,0.36615321,97101.0,97100.0,0.0017284]
[1732998052704,0.51615321,97101.0,97100.0,0.0017284]
[1732998053797,0.51015321,97101.0,97100.0,0.0017284]
[1732998054212,0.51915321,97101.0,97100.0,0.0017284]
[1732998054681,0.51015321,97101.0,97100.0,0.0017284]
[1732998055374,0.51915321,97101.0,97100.0,0.0017284]
[1732998055593,0.51015321,97101.0,97100.0,0.0017284]
[1732998056272,0.50115321,97101.0,97100.0,0.0017284]
[1732998056494,0.51015321,97101.0,97100.0,0.0017284]
[1732998056965,0.51915321,97101.0,97100.0,0.0017284]
[1732998058526,0.51914692,97101.0,97100.0,0.0017284]
[1732998064685,0.51914522,97101.0,97100.0,0.0017284]
[1732998065486,0.51914522,97101.0,97100.0,0.00054874]
[1732998065929,0.53975107,97101.0,97100.0,0.00054874]
[1732998068034,0.53010147,97101.0,97100.0,0.00054874]
[1732998068226,0.53975075,97101.0,97100.0,0.00054874]
[1732998072168,0.53975154,97101.0,97100.0,0.00054874]
[1732998074303,0.55587244,97101.0,97100.0,0.00054874]
[1732998074529,0.72587244,97101.0,97100.0,0.00054874]
[1732998078998,0.72587608,97101.0,97100.0,0.00054874]
[1732998079225,0.72587609,97101.0,97100.0,0.00054874]
[1732998080398,0.57587609,97101.0,97100.0,0.00054874]
[1732998082231,0.57587899,97101.0,97100.0,0.00054874]
[1732998082458,0.57588078,97101.0,97100.0,0.00054874]
[1732998082878,0.56622237,97101.0,97100.0,0.00054874]
[1732998083107,0.57588093,97101.0,97100.0,0.00054874]
[1732998084013,0.44578093,97101.0,97100.0,0.00054874]
[1732998084243,0.27578093,97101.0,97100.0,0.00054874]
[1732998084454,0.26612237,97101.0,97100.0,0.00054874]
[1732998086902,0.27578093,97101.0,97100.0,0.00054874]
[1732998087131,0.26612237,97101.0,97100.0,0.00054874]
[1732998087356,0.27578093,97101.0,97100.0,0.00054874]
[1732998087590,0.26612237,97101.0,97100.0,0.00054874]
[1732998088078,0.27578093,97101.0,97100.0,0.00054874]
[1732998088301,0.26612237,97101.0,97100.0,0.00054874]
[1732998088721,0.27578093,97101.0,97100.0,0.00054874]
[1732998088943,0.26612237,97101.0,97100.0,0.00054874]
[1732998089112,0.27578093,97101.0,97100.0,0.00054874]
[1732998089312,0.43612237,97101.0,97100.0,0.00054874]
[1732998089704,0.44577825,97101.0,97100.0,0.00054874]
[1732998092553,0.43612237,97101.0,97100.0,0.00054874]
[1732998093782,0.45543198,97101.0,97100.0,0.00054874]
[1732998094011,0.46508676,97101.0,97100.0,0.00054874]
[1732998094298,0.45543198,97101.0,97100.0,0.00054874]
[1732998094493,0.46508617,97101.0,97100.0,0.00054874]
[1732998094723,0.29508617,97101.0,97100.0,0.00054874]
[1732998094932,0.28543198,97101.0,97100.0,0.00054874]
[1732998099717,0.45543198,97101.0,97100.0,0.00054874]
[1732998104097,0.43612237,97101.0,97100.0,0.00054874]
[1732998104584,0.43612237,97101.0,97100.0,0.00044594]
[1732998112169,0.26612237,97101.0,97100.0,0.00044594]
[1732998112389,0.16313737,97101.0,97100.0,0.00044594]
[1732998112606,0.16313737,97101.0,97100.0,0.18373194]
[1732998112851,0.16313737,97101.0,97100.0,0.18798574]
[1732998113352,0.15413737,97101.0,97100.0,0.18798574]